[Event "Titled Tuesday Blitz August 31 2021"]
[White "Jarovinsky, Alexey"]
[Black "deribas12345"]
[WhiteFideId "14115131"]
[WhiteElo "2446"]
[BlackElo "2590"]
[Result "1-0"]
[Round "06"]
[TimeControl "180+1"]
[Date "2021.08.31"]
[WhiteClock "0:00:22"]
[BlackClock "0:00:01"]

1. Nc3 {[%clk 0:03:00]}  e6 {[%clk 0:02:57]} 2. e4 {[%clk 0:02:59]}  d5 {[%clk 0:02:57]} 3. g3 {[%clk 0:02:58]}  d4 {[%clk 0:02:50]} 4. Nce2 {[%clk 0:02:57]}  e5 {[%clk 0:02:51]} 5. d3 {[%clk 0:02:55]}  Nf6 {[%clk 0:02:43]} 6. f4 {[%clk 0:02:55]}  exf4 {[%clk 0:02:40]} 7. Nxf4 {[%clk 0:02:40]}  Bb4+ {[%clk 0:02:39]} 8. Bd2 {[%clk 0:02:29]}  Bxd2+ {[%clk 0:02:38]} 9. Qxd2 {[%clk 0:02:30]}  O-O {[%clk 0:02:38]} 10. h3 {[%clk 0:02:19]}  Nc6 {[%clk 0:02:10]} 11. Nf3 {[%clk 0:02:18]}  Nd7 {[%clk 0:01:59]} 12. Bg2 {[%clk 0:02:15]}  Nde5 {[%clk 0:01:58]} 13. O-O {[%clk 0:02:14]}  f6 {[%clk 0:01:57]} 14. c3 {[%clk 0:02:04]}  Nxf3+ {[%clk 0:01:54]} 15. Rxf3 {[%clk 0:02:00]}  Ne5 {[%clk 0:01:51]} 16. Rf2 {[%clk 0:01:59]}  c5 {[%clk 0:01:44]} 17. cxd4 {[%clk 0:01:54]}  Qxd4 {[%clk 0:01:39]} 18. Qc3 {[%clk 0:01:54]}  Qe3 {[%clk 0:01:01]} 19. g4 {[%clk 0:01:41]}  Bxg4 {[%clk 0:00:50]} 20. Nd5 {[%clk 0:01:39]}  Qg3 {[%clk 0:00:49]} 21. hxg4 {[%clk 0:01:36]}  Nxg4 {[%clk 0:00:49]} 22. Rf3 {[%clk 0:01:36]}  Qh2+ {[%clk 0:00:48]} 23. Kf1 {[%clk 0:01:35]}  Rad8 {[%clk 0:00:43]} 24. Qxc5 {[%clk 0:01:29]}  Kh8 {[%clk 0:00:41]} 25. Rc1 {[%clk 0:01:24]}  Qe5 {[%clk 0:00:38]} 26. Rf5 {[%clk 0:01:08]}  Qxb2 {[%clk 0:00:33]} 27. Rf4 {[%clk 0:00:39]}  Ne5 {[%clk 0:00:31]} 28. Qc2 {[%clk 0:00:37]}  Qd4 {[%clk 0:00:30]} 29. Qc3 {[%clk 0:00:33]}  Rxd5 {[%clk 0:00:28]} 30. exd5 {[%clk 0:00:31]}  Qxf4+ {[%clk 0:00:27]} 31. Kg1 {[%clk 0:00:29]}  Qg3 {[%clk 0:00:27]} 32. d4 {[%clk 0:00:28]}  Qxc3 {[%clk 0:00:21]} 33. Rxc3 {[%clk 0:00:29]}  Nf7 {[%clk 0:00:12]} 34. Rc7 {[%clk 0:00:29]}  Kg8 {[%clk 0:00:12]} 35. Rxb7 {[%clk 0:00:28]}  Rd8 {[%clk 0:00:12]} 36. Rxa7 {[%clk 0:00:28]}  Nd6 {[%clk 0:00:13]} 37. a4 {[%clk 0:00:27]}  h5 {[%clk 0:00:11]} 38. a5 {[%clk 0:00:27]}  g5 {[%clk 0:00:10]} 39. a6 {[%clk 0:00:26]}  g4 {[%clk 0:00:09]} 40. Rc7 {[%clk 0:00:25]}  Nb5 {[%clk 0:00:08]} 41. Rb7 {[%clk 0:00:25]}  Nd6 {[%clk 0:00:06]} 42. Rb6 {[%clk 0:00:24]}  Kf7 {[%clk 0:00:02]} 43. a7 {[%clk 0:00:24]}  Ke7 {[%clk 0:00:01]} 44. Rb8 {[%clk 0:00:23]}  Rd7 {[%clk 0:00:01]} 45. a8=Q {[%clk 0:00:22]} 1-0


[Site "https://www.chess.com"]

[Event "Titled Tuesday Blitz August 31 2021"]
[White "Khanin, Semen"]
[Black "Mukhutdinov, Tigran"]
[WhiteFideId "4111990"]
[BlackFideId "34108570"]
[WhiteElo "2521"]
[BlackElo "2154"]
[Result "1-0"]
[Round "06"]
[TimeControl "180+1"]
[Date "2021.08.31"]
[WhiteClock "0:01:12"]
[BlackClock "0:00:28"]

1. e4 {[%clk 0:03:00]}  c5 {[%clk 0:03:00]} 2. c3 {[%clk 0:03:01]}  Nf6 {[%clk 0:02:59]} 3. e5 {[%clk 0:03:01]}  Nd5 {[%clk 0:03:00]} 4. Bc4 {[%clk 0:03:02]}  Nb6 {[%clk 0:02:56]} 5. Bb3 {[%clk 0:03:02]}  c4 {[%clk 0:02:55]} 6. Bc2 {[%clk 0:03:03]}  d6 {[%clk 0:02:56]} 7. exd6 {[%clk 0:03:02]}  Qxd6 {[%clk 0:02:56]} 8. Nf3 {[%clk 0:03:02]}  Nc6 {[%clk 0:02:57]} 9. O-O {[%clk 0:03:02]}  Bg4 {[%clk 0:02:57]} 10. Re1 {[%clk 0:02:59]}  O-O-O {[%clk 0:02:56]} 11. b3 {[%clk 0:02:59]}  Qf6 {[%clk 0:02:53]} 12. Na3 {[%clk 0:02:57]}  Nd5 {[%clk 0:02:51]} 13. Qe2 {[%clk 0:02:45]}  Bxf3 {[%clk 0:02:48]} 14. Qxf3 {[%clk 0:02:45]}  Qxf3 {[%clk 0:02:48]} 15. gxf3 {[%clk 0:02:46]}  cxb3 {[%clk 0:02:49]} 16. axb3 {[%clk 0:02:45]}  e6 {[%clk 0:02:49]} 17. Nc4 {[%clk 0:02:43]}  Kb8 {[%clk 0:02:38]} 18. b4 {[%clk 0:02:41]}  b6 {[%clk 0:02:34]} 19. b5 {[%clk 0:02:39]}  Na5 {[%clk 0:02:08]} 20. Nxa5 {[%clk 0:02:31]}  bxa5 {[%clk 0:02:09]} 21. Rxa5 {[%clk 0:02:30]}  Bc5 {[%clk 0:02:09]} 22. Ra4 {[%clk 0:02:23]}  Bb6 {[%clk 0:02:06]} 23. c4 {[%clk 0:02:15]}  Nf4 {[%clk 0:02:05]} 24. c5 {[%clk 0:02:15]}  Bc7 {[%clk 0:01:58]} 25. b6 {[%clk 0:02:10]}  axb6 {[%clk 0:01:55]} 26. cxb6 {[%clk 0:02:10]}  Bd6 {[%clk 0:01:53]} 27. Be4 {[%clk 0:01:58]}  Nd5 {[%clk 0:01:50]} 28. Bxd5 {[%clk 0:01:58]}  exd5 {[%clk 0:01:51]} 29. Bb2 {[%clk 0:01:58]}  f6 {[%clk 0:01:48]} 30. Ra7 {[%clk 0:01:57]}  Rhg8 {[%clk 0:01:28]} 31. Bd4 {[%clk 0:01:55]}  Bb4 {[%clk 0:01:19]} 32. Rb1 {[%clk 0:01:42]}  Bxd2 {[%clk 0:01:02]} 33. b7 {[%clk 0:01:40]}  Rde8 {[%clk 0:00:53]} 34. Ra8+ {[%clk 0:01:24]}  Kc7 {[%clk 0:00:52]} 35. Rxe8 {[%clk 0:01:25]}  Rxe8 {[%clk 0:00:51]} 36. Ba7 {[%clk 0:01:25]}  Rb8 {[%clk 0:00:45]} 37. Bxb8+ {[%clk 0:01:25]}  Kxb8 {[%clk 0:00:46]} 38. Kf1 {[%clk 0:01:19]}  Bf4 {[%clk 0:00:46]} 39. h3 {[%clk 0:01:19]}  d4 {[%clk 0:00:46]} 40. Ke2 {[%clk 0:01:19]}  h5 {[%clk 0:00:43]} 41. Kd3 {[%clk 0:01:19]}  Be5 {[%clk 0:00:41]} 42. f4 {[%clk 0:01:16]}  Bxf4 {[%clk 0:00:40]} 43. Kxd4 {[%clk 0:01:16]}  Be5+ {[%clk 0:00:41]} 44. Kd5 {[%clk 0:01:16]}  g5 {[%clk 0:00:39]} 45. Kc6 {[%clk 0:01:16]}  h4 {[%clk 0:00:35]} 46. Rb5 {[%clk 0:01:13]}  g4 {[%clk 0:00:28]} 47. Ra5 {[%clk 0:01:12]} 1-0


[Site "https://www.chess.com"]

[Event "Titled Tuesday Blitz August 31 2021"]
[White "Kobalia, Mikhail"]
[Black "Viani Antonio Dcunha"]
[WhiteFideId "4119150"]
[BlackFideId "5027330"]
[WhiteElo "2569"]
[BlackElo "2366"]
[Result "1-0"]
[Round "06"]
[TimeControl "180+1"]
[Date "2021.08.31"]
[WhiteClock "0:00:15"]
[BlackClock "0:00:07"]

1. Nf3 {[%clk 0:03:00]}  Nf6 {[%clk 0:02:58]} 2. g3 {[%clk 0:02:58]}  Nc6 {[%clk 0:02:57]} 3. Bg2 {[%clk 0:02:58]}  e5 {[%clk 0:02:56]} 4. d3 {[%clk 0:02:58]}  d5 {[%clk 0:02:51]} 5. Nbd2 {[%clk 0:02:58]}  Bc5 {[%clk 0:02:50]} 6. O-O {[%clk 0:02:57]}  e4 {[%clk 0:02:47]} 7. Nh4 {[%clk 0:02:23]}  e3 {[%clk 0:02:29]} 8. fxe3 {[%clk 0:02:23]}  Bxe3+ {[%clk 0:02:29]} 9. Kh1 {[%clk 0:02:23]}  Ng4 {[%clk 0:02:20]} 10. Qe1 {[%clk 0:02:22]}  Nd4 {[%clk 0:02:11]} 11. Nb3 {[%clk 0:02:18]}  Nxc2 {[%clk 0:02:06]} 12. Qc3 {[%clk 0:02:17]}  Nxa1 {[%clk 0:02:05]} 13. Qxg7 {[%clk 0:02:16]}  Rf8 {[%clk 0:02:04]} 14. Nxa1 {[%clk 0:02:03]}  Bxc1 {[%clk 0:01:55]} 15. Rxc1 {[%clk 0:02:02]}  Qf6 {[%clk 0:01:54]} 16. Qxf6 {[%clk 0:02:00]}  Nxf6 {[%clk 0:01:55]} 17. Rxc7 {[%clk 0:02:00]}  Kd8 {[%clk 0:01:49]} 18. Rc1 {[%clk 0:01:58]}  Be6 {[%clk 0:01:49]} 19. Nb3 {[%clk 0:01:57]}  Rc8 {[%clk 0:01:47]} 20. Rf1 {[%clk 0:01:57]}  Ng4 {[%clk 0:01:46]} 21. Nd4 {[%clk 0:01:55]}  Kd7 {[%clk 0:01:42]} 22. Nhf5 {[%clk 0:01:48]}  h5 {[%clk 0:01:32]} 23. h3 {[%clk 0:01:46]}  Ne5 {[%clk 0:01:31]} 24. Ng7 {[%clk 0:01:42]}  Rh8 {[%clk 0:01:24]} 25. Kh2 {[%clk 0:01:32]}  Rcg8 {[%clk 0:01:18]} 26. Ngf5 {[%clk 0:01:31]}  Rc8 {[%clk 0:01:11]} 27. Ne3 {[%clk 0:01:31]}  Nc6 {[%clk 0:01:02]} 28. Nb3 {[%clk 0:01:26]}  d4 {[%clk 0:01:01]} 29. Nc5+ {[%clk 0:01:23]}  Ke7 {[%clk 0:00:59]} 30. Nf5+ {[%clk 0:01:19]}  Bxf5 {[%clk 0:00:56]} 31. Rxf5 {[%clk 0:01:20]}  h4 {[%clk 0:00:55]} 32. gxh4 {[%clk 0:01:16]}  Rxh4 {[%clk 0:00:52]} 33. Nxb7 {[%clk 0:01:16]}  Rh6 {[%clk 0:00:47]} 34. Nc5 {[%clk 0:01:13]}  Rf6 {[%clk 0:00:47]} 35. Rxf6 {[%clk 0:00:36]}  Kxf6 {[%clk 0:00:48]} 36. a3 {[%clk 0:00:36]}  Ne5 {[%clk 0:00:44]} 37. b4 {[%clk 0:00:35]}  Kf5 {[%clk 0:00:41]} 38. Kg3 {[%clk 0:00:34]}  Rg8+ {[%clk 0:00:39]} 39. Kf2 {[%clk 0:00:34]}  Kf4 {[%clk 0:00:38]} 40. Nb3 {[%clk 0:00:32]}  Rd8 {[%clk 0:00:36]} 41. Na5 {[%clk 0:00:31]}  Rc8 {[%clk 0:00:35]} 42. Nb3 {[%clk 0:00:30]}  Rd8 {[%clk 0:00:35]} 43. b5 {[%clk 0:00:30]}  Ng6 {[%clk 0:00:30]} 44. a4 {[%clk 0:00:29]}  Ne7 {[%clk 0:00:29]} 45. a5 {[%clk 0:00:29]}  Nc8 {[%clk 0:00:26]} 46. Bf3 {[%clk 0:00:24]}  Ke5 {[%clk 0:00:24]} 47. Nc5 {[%clk 0:00:20]}  Nd6 {[%clk 0:00:20]} 48. Bc6 {[%clk 0:00:16]}  Kf4 {[%clk 0:00:16]} 49. Nb7 {[%clk 0:00:15]}  Nxb7 {[%clk 0:00:13]} 50. Bxb7 {[%clk 0:00:16]}  Rb8 {[%clk 0:00:07]} 51. a6 {[%clk 0:00:15]} 1-0


[Site "https://www.chess.com"]

[Event "Titled Tuesday Blitz August 31 2021"]
[White "LEGENYA1998"]
[Black "Farahat, Ali"]
[BlackFideId "10600507"]
[WhiteElo "2426"]
[BlackElo "2321"]
[Result "0-1"]
[Round "06"]
[TimeControl "180+1"]
[Date "2021.08.31"]
[WhiteClock "0:00:57"]
[BlackClock "0:01:44"]

1. e4 {[%clk 0:02:56]}  e5 {[%clk 0:02:59]} 2. Bc4 {[%clk 0:02:53]}  Nf6 {[%clk 0:02:58]} 3. d3 {[%clk 0:02:54]}  Nc6 {[%clk 0:02:58]} 4. Nc3 {[%clk 0:02:53]}  Bc5 {[%clk 0:02:57]} 5. Nf3 {[%clk 0:02:54]}  O-O {[%clk 0:02:53]} 6. h3 {[%clk 0:02:49]}  h6 {[%clk 0:02:24]} 7. a3 {[%clk 0:02:47]}  d6 {[%clk 0:02:23]} 8. O-O {[%clk 0:02:45]}  Be6 {[%clk 0:02:21]} 9. b4 {[%clk 0:02:21]}  Bb6 {[%clk 0:02:18]} 10. Bb2 {[%clk 0:02:19]}  a5 {[%clk 0:02:14]} 11. b5 {[%clk 0:02:10]}  Nd4 {[%clk 0:02:13]} 12. Nd5 {[%clk 0:02:05]}  Nxf3+ {[%clk 0:02:07]} 13. Qxf3 {[%clk 0:02:04]}  Nxd5 {[%clk 0:02:07]} 14. Bxd5 {[%clk 0:01:59]}  Bxd5 {[%clk 0:02:07]} 15. exd5 {[%clk 0:01:59]}  f5 {[%clk 0:02:07]} 16. a4 {[%clk 0:01:51]}  Qh4 {[%clk 0:02:01]} 17. Rfd1 {[%clk 0:01:46]}  Rae8 {[%clk 0:02:00]} 18. d4 {[%clk 0:01:23]}  e4 {[%clk 0:01:59]} 19. Qe2 {[%clk 0:01:22]}  f4 {[%clk 0:01:58]} 20. Qg4 {[%clk 0:01:22]}  Qf6 {[%clk 0:01:53]} 21. c4 {[%clk 0:01:20]}  e3 {[%clk 0:01:52]} 22. fxe3 {[%clk 0:01:09]}  Rxe3 {[%clk 0:01:53]} 23. Rac1 {[%clk 0:00:59]}  f3 {[%clk 0:01:47]} 24. gxf3 {[%clk 0:00:58]}  Rxf3 {[%clk 0:01:44]} 25. Rf1 {[%clk 0:00:58]}  Rxf1+ {[%clk 0:01:43]} 26. Rxf1 {[%clk 0:00:57]}  Qxf1+ {[%clk 0:01:44]} 0-1


[Site "https://www.chess.com"]

[Event "Titled Tuesday Blitz August 31 2021"]
[White "Ljukin, Sergei"]
[Black "Karttunen, Mika"]
[WhiteFideId "14102200"]
[BlackFideId "502081"]
[WhiteElo "2309"]
[BlackElo "2343"]
[Result "0-1"]
[Round "06"]
[TimeControl "180+1"]
[Date "2021.08.31"]
[WhiteClock "0:00:20"]
[BlackClock "0:00:20"]

1. e4 {[%clk 0:03:00]}  c5 {[%clk 0:02:59]} 2. Nf3 {[%clk 0:03:00]}  d6 {[%clk 0:02:59]} 3. d4 {[%clk 0:03:00]}  cxd4 {[%clk 0:02:59]} 4. Nxd4 {[%clk 0:03:01]}  Nf6 {[%clk 0:03:00]} 5. Nc3 {[%clk 0:03:01]}  a6 {[%clk 0:03:00]} 6. Bg5 {[%clk 0:03:01]}  e6 {[%clk 0:02:59]} 7. f4 {[%clk 0:03:01]}  Qb6 {[%clk 0:02:57]} 8. Qd3 {[%clk 0:03:01]}  h6 {[%clk 0:02:11]} 9. Bxf6 {[%clk 0:03:00]}  gxf6 {[%clk 0:02:11]} 10. O-O-O {[%clk 0:02:59]}  Nc6 {[%clk 0:02:08]} 11. Nb3 {[%clk 0:02:40]}  h5 {[%clk 0:01:57]} 12. Be2 {[%clk 0:02:37]}  Bd7 {[%clk 0:01:52]} 13. Qh3 {[%clk 0:02:25]}  h4 {[%clk 0:01:31]} 14. g4 {[%clk 0:02:16]}  O-O-O {[%clk 0:01:22]} 15. Kb1 {[%clk 0:02:14]}  Kb8 {[%clk 0:01:22]} 16. Qf3 {[%clk 0:02:11]}  Be7 {[%clk 0:01:18]} 17. h3 {[%clk 0:02:10]}  Ka8 {[%clk 0:01:18]} 18. Rhe1 {[%clk 0:02:09]}  Rc8 {[%clk 0:01:17]} 19. Bf1 {[%clk 0:02:05]}  Rc7 {[%clk 0:01:11]} 20. Nd5 {[%clk 0:01:58]}  exd5 {[%clk 0:01:07]} 21. exd5 {[%clk 0:01:58]}  Ne5 {[%clk 0:01:08]} 22. fxe5 {[%clk 0:01:58]}  fxe5 {[%clk 0:00:56]} 23. Bd3 {[%clk 0:01:55]}  f6 {[%clk 0:00:53]} 24. c4 {[%clk 0:01:50]}  Ba4 {[%clk 0:00:51]} 25. Bf1 {[%clk 0:01:41]}  Rhc8 {[%clk 0:00:39]} 26. Rc1 {[%clk 0:01:38]}  Qb4 {[%clk 0:00:38]} 27. Red1 {[%clk 0:01:17]}  Bf8 {[%clk 0:00:37]} 28. Rc3 {[%clk 0:01:04]}  Bg7 {[%clk 0:00:31]} 29. Qf5 {[%clk 0:00:49]}  Bd7 {[%clk 0:00:29]} 30. Qe4 {[%clk 0:00:47]}  Rf8 {[%clk 0:00:27]} 31. Rf3 {[%clk 0:00:41]}  Bc8 {[%clk 0:00:25]} 32. Bd3 {[%clk 0:00:40]}  Rcf7 {[%clk 0:00:25]} 33. Rdf1 {[%clk 0:00:35]}  f5 {[%clk 0:00:24]} 34. gxf5 {[%clk 0:00:35]}  Bf6 {[%clk 0:00:24]} 35. Qe2 {[%clk 0:00:33]}  e4 {[%clk 0:00:23]} 36. Bxe4 {[%clk 0:00:32]}  Re7 {[%clk 0:00:24]} 37. Qd3 {[%clk 0:00:32]}  Rfe8 {[%clk 0:00:24]} 38. Rf4 {[%clk 0:00:31]}  Kb8 {[%clk 0:00:23]} 39. Rg4 {[%clk 0:00:30]}  a5 {[%clk 0:00:23]} 40. a3 {[%clk 0:00:24]}  Qb6 {[%clk 0:00:23]} 41. Rd1 {[%clk 0:00:24]}  a4 {[%clk 0:00:23]} 42. Nd4 {[%clk 0:00:24]}  Rxe4 {[%clk 0:00:20]} 43. Rxe4 {[%clk 0:00:23]}  Rxe4 {[%clk 0:00:20]} 44. Qxe4 {[%clk 0:00:22]}  Bxf5 {[%clk 0:00:20]} 45. Qxf5 {[%clk 0:00:22]}  Bxd4 {[%clk 0:00:20]} 46. Qc2 {[%clk 0:00:21]}  Be5 {[%clk 0:00:20]} 47. c5 {[%clk 0:00:21]}  dxc5 {[%clk 0:00:20]} 48. d6 {[%clk 0:00:21]}  Bd4 {[%clk 0:00:20]} 49. d7 {[%clk 0:00:20]}  Kc7 {[%clk 0:00:21]} 50. Qf5 {[%clk 0:00:20]}  Qxb2# {[%clk 0:00:20]} 0-1


[Site "https://www.chess.com"]

[Event "Titled Tuesday Blitz August 31 2021"]
[White "Maghsoodloo, Parham"]
[Black "Shubenkova, Veronika"]
[WhiteFideId "12539929"]
[BlackFideId "44124040"]
[WhiteElo "2601"]
[BlackElo "1882"]
[Result "1-0"]
[Round "06"]
[TimeControl "180+1"]
[Date "2021.08.31"]
[WhiteClock "0:01:56"]
[BlackClock "0:02:10"]

1. e4 {[%clk 0:03:00]}  e6 {[%clk 0:02:59]} 2. d4 {[%clk 0:02:59]}  d5 {[%clk 0:03:00]} 3. e5 {[%clk 0:02:55]}  c5 {[%clk 0:03:00]} 4. c3 {[%clk 0:02:56]}  Nc6 {[%clk 0:03:00]} 5. Nf3 {[%clk 0:02:56]}  cxd4 {[%clk 0:03:00]} 6. cxd4 {[%clk 0:02:56]}  Nge7 {[%clk 0:03:01]} 7. Bd3 {[%clk 0:02:55]}  Ng6 {[%clk 0:03:01]} 8. h4 {[%clk 0:02:55]}  Qb6 {[%clk 0:02:57]} 9. h5 {[%clk 0:02:54]}  Nge7 {[%clk 0:02:57]} 10. Nc3 {[%clk 0:02:54]}  Bd7 {[%clk 0:02:57]} 11. O-O {[%clk 0:02:41]}  Nxd4 {[%clk 0:02:56]} 12. Nxd4 {[%clk 0:02:42]}  Qxd4 {[%clk 0:02:54]} 13. Qe2 {[%clk 0:02:34]}  a6 {[%clk 0:02:41]} 14. Be3 {[%clk 0:02:25]}  Qxe5 {[%clk 0:02:40]} 15. f4 {[%clk 0:02:26]}  Qd6 {[%clk 0:02:38]} 16. Rad1 {[%clk 0:02:24]}  Nc6 {[%clk 0:02:35]} 17. f5 {[%clk 0:02:22]}  d4 {[%clk 0:02:28]} 18. Bf4 {[%clk 0:02:05]}  Qc5 {[%clk 0:02:21]} 19. Ne4 {[%clk 0:02:05]}  Qd5 {[%clk 0:02:15]} 20. h6 {[%clk 0:01:56]}  gxh6 {[%clk 0:02:13]} 21. Nf6+ {[%clk 0:01:56]}  Kd8 {[%clk 0:02:12]} 22. Nxd5 {[%clk 0:01:56]}  exd5 {[%clk 0:02:10]} 23. Qf3 {[%clk 0:01:56]} 1-0


[Site "https://www.chess.com"]

[Event "Titled Tuesday Blitz August 31 2021"]
[White "Maksimovic, Bojan"]
[Black "Khabinets, Ivan"]
[WhiteFideId "14408120"]
[BlackFideId "14115980"]
[WhiteElo "2439"]
[BlackElo "2114"]
[Result "1-0"]
[Round "06"]
[TimeControl "180+1"]
[Date "2021.08.31"]
[WhiteClock "0:02:39"]
[BlackClock "0:02:00"]

1. g3 {[%clk 0:02:59]}  d5 {[%clk 0:02:59]} 2. Bg2 {[%clk 0:03:00]}  g6 {[%clk 0:02:59]} 3. d3 {[%clk 0:03:01]}  Bg7 {[%clk 0:03:00]} 4. Nd2 {[%clk 0:03:01]}  e5 {[%clk 0:03:00]} 5. e4 {[%clk 0:03:02]}  Ne7 {[%clk 0:02:59]} 6. Ngf3 {[%clk 0:03:02]}  O-O {[%clk 0:02:59]} 7. O-O {[%clk 0:03:02]}  Nbc6 {[%clk 0:02:59]} 8. c3 {[%clk 0:03:02]}  h6 {[%clk 0:02:59]} 9. Re1 {[%clk 0:03:03]}  Re8 {[%clk 0:02:57]} 10. Qc2 {[%clk 0:03:03]}  a5 {[%clk 0:02:56]} 11. b3 {[%clk 0:03:03]}  d4 {[%clk 0:02:54]} 12. c4 {[%clk 0:03:00]}  Bd7 {[%clk 0:02:32]} 13. h3 {[%clk 0:02:59]}  a4 {[%clk 0:02:29]} 14. Ba3 {[%clk 0:02:57]}  axb3 {[%clk 0:02:27]} 15. axb3 {[%clk 0:02:57]}  Kh7 {[%clk 0:02:13]} 16. b4 {[%clk 0:02:54]}  b6 {[%clk 0:02:04]} 17. b5 {[%clk 0:02:54]}  Na5 {[%clk 0:02:04]} 18. Bb4 {[%clk 0:02:54]}  Nb7 {[%clk 0:02:03]} 19. Kh2 {[%clk 0:02:51]}  Bf8 {[%clk 0:02:00]} 20. Nxe5 {[%clk 0:02:39]} 1-0


[Site "https://www.chess.com"]

[Event "Titled Tuesday Blitz August 31 2021"]
[White "Martin Carmona, Gaston Manuel"]
[Black "Florescu, Codrut-Constantin"]
[WhiteFideId "22284567"]
[BlackFideId "1202200"]
[WhiteElo "2161"]
[BlackElo "2243"]
[Result "1-0"]
[Round "06"]
[TimeControl "180+1"]
[Date "2021.08.31"]
[WhiteClock "0:00:13"]
[BlackClock "0:00:17"]

1. c4 {[%clk 0:03:00]}  e6 {[%clk 0:02:59]} 2. g3 {[%clk 0:03:00]}  d5 {[%clk 0:03:00]} 3. Bg2 {[%clk 0:03:00]}  Nf6 {[%clk 0:03:00]} 4. Nf3 {[%clk 0:03:01]}  Be7 {[%clk 0:03:01]} 5. d4 {[%clk 0:03:01]}  O-O {[%clk 0:03:01]} 6. O-O {[%clk 0:03:01]}  c6 {[%clk 0:03:02]} 7. Qc2 {[%clk 0:03:01]}  Nbd7 {[%clk 0:03:02]} 8. Nbd2 {[%clk 0:03:01]}  b6 {[%clk 0:03:02]} 9. e4 {[%clk 0:03:02]}  Bb7 {[%clk 0:03:03]} 10. e5 {[%clk 0:03:01]}  Ne8 {[%clk 0:03:03]} 11. cxd5 {[%clk 0:03:02]}  exd5 {[%clk 0:03:03]} 12. Re1 {[%clk 0:02:37]}  Nc7 {[%clk 0:03:04]} 13. Nf1 {[%clk 0:02:33]}  Ne6 {[%clk 0:03:04]} 14. Ne3 {[%clk 0:02:34]}  Re8 {[%clk 0:03:04]} 15. Bd2 {[%clk 0:02:30]}  c5 {[%clk 0:03:00]} 16. Bc3 {[%clk 0:02:29]}  Rc8 {[%clk 0:02:59]} 17. Qd2 {[%clk 0:01:56]}  Bf8 {[%clk 0:02:49]} 18. dxc5 {[%clk 0:01:43]}  Ndxc5 {[%clk 0:02:47]} 19. Rad1 {[%clk 0:01:14]}  Ne4 {[%clk 0:02:42]} 20. Qd3 {[%clk 0:01:15]}  Nxc3 {[%clk 0:02:41]} 21. bxc3 {[%clk 0:01:14]}  Rc5 {[%clk 0:02:27]} 22. Nd4 {[%clk 0:01:10]}  Ra5 {[%clk 0:02:02]} 23. Qd2 {[%clk 0:01:00]}  Nxd4 {[%clk 0:01:42]} 24. cxd4 {[%clk 0:00:59]}  Ra4 {[%clk 0:01:42]} 25. Qe2 {[%clk 0:00:55]}  Bb4 {[%clk 0:01:24]} 26. Qc2 {[%clk 0:00:47]}  Ra3 {[%clk 0:01:15]} 27. Re2 {[%clk 0:00:47]}  Rc3 {[%clk 0:01:07]} 28. Qb2 {[%clk 0:00:46]}  a5 {[%clk 0:01:07]} 29. Rc2 {[%clk 0:00:41]}  Rxc2 {[%clk 0:00:47]} 30. Nxc2 {[%clk 0:00:42]}  Bf8 {[%clk 0:00:45]} 31. Rb1 {[%clk 0:00:41]}  Ba6 {[%clk 0:00:32]} 32. Qxb6 {[%clk 0:00:40]}  Qxb6 {[%clk 0:00:31]} 33. Rxb6 {[%clk 0:00:41]}  Bc4 {[%clk 0:00:32]} 34. a4 {[%clk 0:00:34]}  f6 {[%clk 0:00:29]} 35. f4 {[%clk 0:00:33]}  fxe5 {[%clk 0:00:29]} 36. fxe5 {[%clk 0:00:31]}  Be7 {[%clk 0:00:29]} 37. Ne3 {[%clk 0:00:29]}  Bg5 {[%clk 0:00:28]} 38. Bxd5+ {[%clk 0:00:26]}  Bxd5 {[%clk 0:00:27]} 39. Nxd5 {[%clk 0:00:27]}  Rd8 {[%clk 0:00:27]} 40. Rb5 {[%clk 0:00:27]}  h5 {[%clk 0:00:25]} 41. Kg2 {[%clk 0:00:27]}  Bd2 {[%clk 0:00:23]} 42. e6 {[%clk 0:00:26]}  Kh7 {[%clk 0:00:22]} 43. Kf3 {[%clk 0:00:26]}  Bb4 {[%clk 0:00:20]} 44. Ke4 {[%clk 0:00:26]}  Kg6 {[%clk 0:00:19]} 45. Nxb4 {[%clk 0:00:25]}  axb4 {[%clk 0:00:19]} 46. Rxb4 {[%clk 0:00:26]}  Kf6 {[%clk 0:00:19]} 47. d5 {[%clk 0:00:26]}  Ra8 {[%clk 0:00:19]} 48. Kd4 {[%clk 0:00:23]}  g5 {[%clk 0:00:18]} 49. Kc5 {[%clk 0:00:22]}  g4 {[%clk 0:00:18]} 50. Rf4+ {[%clk 0:00:19]}  Ke5 {[%clk 0:00:17]} 51. e7 {[%clk 0:00:18]}  Re8 {[%clk 0:00:16]} 52. d6 {[%clk 0:00:17]}  Ke6 {[%clk 0:00:16]} 53. Rf8 {[%clk 0:00:13]}  Kd7 {[%clk 0:00:16]} 54. Rxe8 {[%clk 0:00:13]}  Kxe8 {[%clk 0:00:17]} 55. Kc6 {[%clk 0:00:13]} 1-0


[Site "https://www.chess.com"]

[Event "Titled Tuesday Blitz August 31 2021"]
[White "Mirzoev, Azer"]
[Black "Romanchuk, Viktor"]
[WhiteFideId "13400304"]
[BlackFideId "14109271"]
[WhiteElo "2525"]
[BlackElo "2242"]
[Result "1-0"]
[Round "06"]
[TimeControl "180+1"]
[Date "2021.08.31"]
[WhiteClock "0:00:37"]
[BlackClock "0:00:03"]

1. d4 {[%clk 0:02:59]}  d5 {[%clk 0:02:59]} 2. Nf3 {[%clk 0:02:58]}  Nf6 {[%clk 0:02:59]} 3. Bf4 {[%clk 0:02:58]}  c5 {[%clk 0:02:58]} 4. e3 {[%clk 0:02:58]}  Nc6 {[%clk 0:02:58]} 5. c3 {[%clk 0:02:58]}  Qb6 {[%clk 0:02:57]} 6. Qb3 {[%clk 0:02:58]}  c4 {[%clk 0:02:57]} 7. Qc2 {[%clk 0:02:58]}  Bf5 {[%clk 0:02:55]} 8. Qc1 {[%clk 0:02:58]}  e6 {[%clk 0:02:56]} 9. Nbd2 {[%clk 0:02:58]}  Be7 {[%clk 0:02:52]} 10. Be2 {[%clk 0:02:58]}  O-O {[%clk 0:02:51]} 11. O-O {[%clk 0:02:57]}  Rfc8 {[%clk 0:02:51]} 12. Ne5 {[%clk 0:02:55]}  Qd8 {[%clk 0:02:50]} 13. a4 {[%clk 0:02:41]}  Nxe5 {[%clk 0:02:40]} 14. Bxe5 {[%clk 0:02:41]}  b6 {[%clk 0:02:29]} 15. Bf3 {[%clk 0:02:26]}  a6 {[%clk 0:02:27]} 16. Bxf6 {[%clk 0:02:24]}  Bxf6 {[%clk 0:02:26]} 17. e4 {[%clk 0:02:25]}  Bg6 {[%clk 0:02:18]} 18. Re1 {[%clk 0:02:24]}  b5 {[%clk 0:02:16]} 19. g3 {[%clk 0:02:24]}  Rab8 {[%clk 0:02:14]} 20. h4 {[%clk 0:02:24]}  h6 {[%clk 0:02:08]} 21. axb5 {[%clk 0:02:22]}  axb5 {[%clk 0:02:07]} 22. exd5 {[%clk 0:02:22]}  exd5 {[%clk 0:02:05]} 23. Nf1 {[%clk 0:02:23]}  b4 {[%clk 0:01:44]} 24. Qf4 {[%clk 0:02:17]}  bxc3 {[%clk 0:01:40]} 25. bxc3 {[%clk 0:02:16]}  Rb3 {[%clk 0:01:37]} 26. Rec1 {[%clk 0:02:01]}  Bd3 {[%clk 0:01:02]} 27. Ne3 {[%clk 0:02:00]}  g5 {[%clk 0:01:00]} 28. Qg4 {[%clk 0:01:54]}  Rb5 {[%clk 0:00:50]} 29. Ra6 {[%clk 0:01:48]}  Rcb8 {[%clk 0:00:33]} 30. hxg5 {[%clk 0:01:45]}  Bxg5 {[%clk 0:00:30]} 31. Rxh6 {[%clk 0:01:43]}  Bg6 {[%clk 0:00:25]} 32. Rxg6+ {[%clk 0:01:13]}  fxg6 {[%clk 0:00:24]} 33. Kg2 {[%clk 0:01:13]}  Kg7 {[%clk 0:00:16]} 34. Re1 {[%clk 0:01:11]}  Bxe3 {[%clk 0:00:12]} 35. Rxe3 {[%clk 0:01:09]}  R8b7 {[%clk 0:00:09]} 36. Re6 {[%clk 0:01:08]}  g5 {[%clk 0:00:05]} 37. Qh5 {[%clk 0:00:51]}  Rf7 {[%clk 0:00:04]} 38. Rg6+ {[%clk 0:00:50]}  Kf8 {[%clk 0:00:05]} 39. Qh8+ {[%clk 0:00:49]}  Ke7 {[%clk 0:00:04]} 40. Qe5+ {[%clk 0:00:49]}  Kf8 {[%clk 0:00:03]} 41. Rh6 {[%clk 0:00:37]} 1-0


[Site "https://www.chess.com"]